bitfinex-derivatives/quotes_BTCF0:USTF0_20240923
["timestamp","ask_amount","ask_price","bid_price","bid_amount"]
[1727073705290,0.078525,63677.0,63676.0,0.53347441]
[1727073705486,0.078525,63677.0,63676.0,0.3608]
[1727073706591,0.078525,63677.0,63673.0,0.07841252]
[1727073706797,0.13,63674.0,63673.0,0.07841252]
[1727073706985,0.13,63674.0,63673.0,0.17271687]
[1727073707589,0.13,63674.0,63673.0,0.07841252]
[1727073707794,0.13,63674.0,63673.0,0.09420974]
[1727073708195,0.131,63674.0,63673.0,0.1725581]
[1727073708394,0.131,63674.0,63673.0,0.17255812]
[1727073708595,0.132,63674.0,63673.0,0.07834838]
[1727073708798,0.132,63674.0,63673.0,0.17254926]
[1727073709098,0.132,63674.0,63672.0,0.07834838]
[1727073709486,0.132,63674.0,63671.0,0.15923572]
[1727073710299,0.002,63674.0,63671.0,0.15923572]
[1727073710703,0.002,63674.0,63673.0,0.07853]
[1727073710905,0.002,63674.0,63673.0,0.15687838]
[1727073711095,0.002,63674.0,63673.0,0.07853]
[1727073716213,0.001,63674.0,63673.0,0.07853]
[1727073716397,0.002,63674.0,63673.0,0.07853]
[1727073721811,0.002,63674.0,63673.0,0.1726282]
[1727073725403,0.002,63674.0,63673.0,0.26672716]
[1727073725910,0.080528,63674.0,63673.0,0.0940982]
[1727073727800,0.080528,63674.0,63673.0,0.17250141]
[1727073728105,0.07853,63673.0,63672.0,0.43920321]
[1727073728302,0.07853,63673.0,63672.0,0.3608]
[1727073729410,0.07853,63673.0,63672.0,0.43920321]
[1727073729815,0.07953,63673.0,63672.0,0.43920321]
[1727073730017,0.07953,63673.0,63672.0,0.53367635]
[1727073730200,0.078531,63672.0,63671.0,0.07840321]
[1727073730517,0.078531,63672.0,63662.0,0.439343]
[1727073730518,0.13,63672.0,63669.0,0.07840321]
[1727073730700,0.13,63670.0,63669.0,0.07844188]
[1727073730906,0.078535,63669.0,63667.0,0.07844188]
[1727073731104,0.13,63668.0,63667.0,0.07844188]
[1727073731311,0.13,63668.0,63667.0,0.17312911]
[1727073731619,0.13,63668.0,63667.0,0.09468723]
[1727073733407,0.13,63668.0,63667.0,0.09469656]
[1727073733613,0.131,63668.0,63667.0,0.09469656]
[1727073733809,0.132,63668.0,63667.0,0.09469656]
[1727073734613,0.210536,63668.0,63667.0,0.09469656]
[1727073735118,0.210536,63668.0,63667.0,0.17314421]
[1727073735511,0.210536,63668.0,63667.0,0.07844765]
[1727073735710,0.078537,63667.0,63666.0,0.07844765]
[1727073736018,0.078538,63666.0,63665.0,0.07844765]
[1727073736209,0.208538,63666.0,63665.0,0.07844765]
[1727073736404,0.07854,63665.0,63664.0,0.07844765]
[1727073736604,0.07854,63665.0,63663.0,0.07844765]
[1727073736605,0.078541,63664.0,63663.0,0.07844765]
[1727073736906,0.205382,63664.0,63663.0,0.06274326]
[1727073737113,0.157084,63663.0,63662.0,0.06274326]
[1727073737314,0.254842,63663.0,63659.0,0.06274326]
[1727073737515,0.078547,63659.0,63658.0,0.06274326]
[1727073737715,0.078548,63658.0,63657.0,0.06274326]
[1727073737918,0.208548,63658.0,63657.0,0.06274326]
[1727073738126,0.078549,63657.0,63656.0,0.06274326]
[1727073738314,0.208549,63657.0,63656.0,0.06274326]
[1727073738511,0.208549,63657.0,63655.0,0.06274326]
[1727073738710,0.13,63656.0,63655.0,0.06274326]
[1727073739419,0.001,63657.0,63654.0,0.3608]
[1727073739720,0.00995381,63657.0,63654.0,0.43924765]
[1727073739921,0.001,63657.0,63654.0,0.43924765]
[1727073740122,0.001,63657.0,63655.0,0.078552]
[1727073741018,0.002,63657.0,63655.0,0.078552]
[1727073741422,0.002,63657.0,63656.0,0.078551]
[1727073742518,0.01116959,63657.0,63656.0,0.14116992]
[1727073744325,0.01116959,63657.0,63656.0,0.078551]
[1727073747226,0.01016959,63657.0,63656.0,0.078551]
[1727073747430,0.01116959,63657.0,63656.0,0.078551]
[1727073747728,0.078535,63669.0,63666.0,0.078538]
[1727073747929,0.36993334,63668.0,63666.0,0.078538]
[1727073748427,0.36993334,63668.0,63667.0,0.078537]
[1727073748820,0.44946934,63668.0,63667.0,0.078537]
[1727073749022,0.57946934,63668.0,63667.0,0.078537]
[1727073749532,0.58046934,63668.0,63667.0,0.078537]
[1727073750429,0.57946934,63668.0,63667.0,0.078537]
[1727073750628,0.57946934,63668.0,63667.0,0.079537]
[1727073750823,0.57946934,63668.0,63667.0,0.001]
[1727073751020,0.21866934,63668.0,63667.0,0.001]
[1727073751435,0.078529,63674.0,63667.0,0.001]
[1727073751625,0.10962584,63715.0,63710.0,0.078483]
[1727073751929,0.00108,63719.0,63714.0,0.439278]
[1727073752127,0.13,63721.0,63717.0,0.06259771]
[1727073752322,0.09073826,63721.0,63718.0,0.11164415]
[1727073752517,0.09073826,63721.0,63720.0,0.42326091]
[1727073752736,0.13,63725.0,63720.0,0.3608]
[1727073752923,0.13,63725.0,63721.0,0.06245938]
[1727073753323,0.13,63725.0,63724.0,0.06245938]
[1727073753525,0.60076,63725.0,63723.0,0.3608]
[1727073753831,0.4708,63724.0,63723.0,0.3608]
[1727073754032,1.2008,63725.0,63723.0,0.3608]
[1727073754226,0.4708,63724.0,63723.0,0.3608]
[1727073755132,0.4708,63724.0,63723.0,0.3618]
[1727073755936,0.02,63725.0,63723.0,0.3618]
[1727073756737,0.019,63725.0,63723.0,0.3618]
[1727073756925,0.019,63725.0,63723.0,0.440267]
[1727073757319,0.009,63724.0,63723.0,0.440267]
[1727073758034,0.005,63725.0,63723.0,0.439267]
[1727073758426,0.078448,63740.0,63731.0,0.078457]
[1727073758625,0.13,63738.0,63733.0,0.3608]
[1727073758825,0.13,63738.0,63737.0,0.3608]
[1727073759233,0.13883119,63738.0,63737.0,0.3608]
[1727073760932,0.13983119,63738.0,63737.0,0.3608]
[1727073761535,0.13883119,63738.0,63737.0,0.3648]
[1727073770148,0.078449,63739.0,63737.0,0.3648]
[1727073771251,0.08757168,63739.0,63737.0,0.3648]
[1727073772340,0.00235472,63741.0,63737.0,0.3648]
[1727073772540,0.05803663,63742.0,63737.0,0.3648]
[1727073773140,0.078449,63739.0,63737.0,0.3648]
[1727073774135,0.078449,63739.0,63737.0,0.004]
[1727073774745,0.078449,63739.0,63735.0,0.3608]
[1727073775049,0.078449,63739.0,63737.0,0.004]
[1727073776043,0.078449,63739.0,63737.0,0.006]
[1727073776646,0.078449,63739.0,63737.0,0.004]
[1727073776848,0.078449,63739.0,63737.0,0.006]
[1727073777739,0.05803663,63742.0,63737.0,0.005]
[1727073777939,0.07845,63738.0,63737.0,0.005]
[1727073778960,0.07845,63738.0,63737.0,0.003]
[1727073779146,0.07845,63738.0,63737.0,0.005]
[1727073781040,0.07845,63738.0,63737.0,0.06745938]
[1727073781457,0.07845,63738.0,63737.0,0.24619119]
[1727073782151,0.07845,63738.0,63737.0,0.24419119]
[1727073782456,0.07845,63738.0,63737.0,0.24619119]
[1727073782941,0.07845,63738.0,63737.0,0.24419119]
[1727073783145,0.07845,63738.0,63737.0,0.24619119]
[1727073784051,0.07845,63738.0,63737.0,0.1150344]
[1727073784250,0.13,63739.0,63737.0,0.1150344]
[1727073784443,0.13,63739.0,63738.0,0.1100344]
[1727073784853,0.13,63739.0,63738.0,0.24029769]
[1727073785247,0.13,63739.0,63738.0,0.1100344]
[1727073786551,0.13,63739.0,63738.0,0.1110344]
[1727073787546,0.13,63739.0,63738.0,0.24145894]
[1727073787963,0.185,63739.0,63738.0,0.24145894]
[1727073788461,0.185,63739.0,63738.0,0.24345894]
[1727073790147,0.185,63739.0,63738.0,0.39492559]
[1727073790148,0.13004826,63739.0,63738.0,0.39492559]
[1727073790762,0.20849626,63739.0,63738.0,0.39492559]
[1727073791457,0.133448,63739.0,63738.0,0.39492559]
[1727073792348,0.0863465,63739.0,63738.0,0.39492559]
[1727073793971,0.0941465,63739.0,63738.0,0.39492559]
[1727073794447,0.0941465,63739.0,63738.0,0.24258187]
[1727073795058,0.0941465,63739.0,63738.0,0.24058187]
[1727073795363,0.0941465,63739.0,63738.0,0.24258187]
[1727073795561,0.0941465,63739.0,63738.0,0.1130344]
[1727073795958,0.0941465,63739.0,63738.0,0.24258692]
[1727073796359,0.0941465,63739.0,63738.0,0.20720359]
[1727073797369,0.0941465,63739.0,63738.0,0.1130344]
[1727073798067,0.0941465,63739.0,63738.0,0.1120344]
[1727073798268,0.0941465,63739.0,63738.0,0.1130344]
[1727073798854,0.0941465,63739.0,63738.0,0.1120344]
[1727073799163,0.0971465,63739.0,63738.0,0.1100344]
[1727073799664,0.0961465,63739.0,63738.0,0.1110344]
[1727073800365,0.00923663,63742.0,63738.0,0.1110344]
[1727073800574,0.0462,63752.0,63745.0,0.07844]
[1727073800863,0.0462,63752.0,63750.0,0.43925831]
[1727073801057,0.08,63751.0,63750.0,0.43925831]
[1727073801262,0.13385382,63752.0,63750.0,0.46899346]
[1727073801453,0.13385382,63752.0,63750.0,0.3608]
[1727073801454,0.08,63751.0,63750.0,0.3608]
[1727073802268,0.012,63751.0,63750.0,0.3608]
[1727073802568,0.090434,63751.0,63750.0,0.59864835]
[1727073803072,0.099434,63751.0,63750.0,0.59864835]
[1727073804360,0.099434,63751.0,63750.0,0.23784835]
[1727073804562,0.099434,63751.0,63750.0,0.10905314]
[1727073805456,0.099434,63751.0,63750.0,0.20304699]
[1727073805869,0.099434,63751.0,63750.0,0.10905314]
[1727073806559,0.021,63751.0,63750.0,0.1089478]
[1727073807064,0.021,63751.0,63750.0,0.20294165]
[1727073807566,0.021,63751.0,63750.0,0.1089478]
[1727073809369,0.021,63751.0,63750.0,0.18722467]
[1727073809561,0.021,63751.0,63750.0,0.001]
[1727073809959,0.021,63751.0,63750.0,0.079435]
[1727073810363,0.021,63751.0,63750.0,0.15771187]
[1727073810567,0.021,63751.0,63750.0,0.18719036]
[1727073811766,0.229434,63751.0,63750.0,0.06359245]
[1727073812073,0.229434,63751.0,63749.0,0.3608]
[1727073812074,0.328834,63751.0,63743.0,0.06259245]
[1727073812262,0.328834,63751.0,63741.0,0.06259245]
[1727073812263,0.078443,63743.0,63741.0,0.06259245]
[1727073812463,0.078443,63743.0,63740.0,0.06259245]
[1727073812964,0.078443,63743.0,63741.0,0.06259245]
[1727073813167,0.13,63742.0,63741.0,0.06259245]
[1727073813370,0.208445,63742.0,63741.0,0.06259245]
[1727073813872,0.21758953,63742.0,63741.0,0.06259245]
[1727073815170,0.21958953,63742.0,63741.0,0.06259245]
[1727073815677,0.22058953,63742.0,63739.0,0.3608]
[1727073815876,0.22058953,63742.0,63741.0,0.0626123]
[1727073817580,0.21858953,63742.0,63739.0,0.3608]
[1727073818573,0.21958953,63742.0,63739.0,0.3608]
[1727073818778,0.21958953,63742.0,63739.0,0.3618]
[1727073819972,0.14114453,63742.0,63739.0,0.3618]
[1727073820373,0.13914453,63742.0,63739.0,0.3618]
[1727073821276,0.078447,63740.0,63739.0,0.3618]
[1727073821973,0.078447,63740.0,63739.0,0.001]
[1727073822174,0.078447,63740.0,63739.0,0.3618]
[1727073822574,0.078447,63740.0,63739.0,0.001]
[1727073822772,0.078447,63740.0,63739.0,0.3618]
[1727073823775,0.078447,63740.0,63739.0,0.40777426]
[1727073823984,0.078447,63740.0,63739.0,0.3618]
[1727073824373,0.078447,63740.0,63739.0,0.40877426]
[1727073824576,0.078447,63740.0,63739.0,0.47009616]
[1727073824777,0.078447,63740.0,63739.0,0.10929616]
[1727073824982,0.078447,63740.0,63739.0,0.47009616]
[1727073825585,0.078447,63740.0,63739.0,0.10929616]
[1727073825788,0.078447,63740.0,63739.0,0.47009616]
[1727073827086,0.078447,63740.0,63739.0,0.46909616]
[1727073827295,0.078447,63740.0,63739.0,0.47009616]
[1727073827491,0.00914453,63742.0,63739.0,0.47009616]
[1727073827780,0.1781,63748.0,63740.0,0.10829616]
[1727073827984,0.1781,63748.0,63745.0,0.3608]
[1727073828884,0.05961082,63748.0,63745.0,0.3608]
[1727073829072,0.05961082,63748.0,63746.0,0.10801297]
[1727073829277,0.13,63747.0,63746.0,0.07829894]
[1727073829572,0.078442,63744.0,63742.0,0.07829894]
[1727073829777,0.078442,63744.0,63743.0,0.07829894]
[1727073829975,0.078442,63744.0,63743.0,0.18653822]
[1727073830180,0.078442,63744.0,63743.0,0.10823928]
[1727073830687,0.080442,63744.0,63743.0,0.10823928]
[1727073830890,0.083442,63744.0,63743.0,0.10823928]
[1727073831078,0.005,63744.0,63743.0,0.10823928]
[1727073831273,0.003,63744.0,63743.0,0.10823928]
[1727073831473,0.006,63744.0,63743.0,0.10823928]
[1727073832686,0.07844,63746.0,63743.0,0.06265134]
[1727073833386,0.004,63744.0,63743.0,0.06265134]
[1727073834186,0.08544,63746.0,63743.0,0.06265134]
[1727073834992,0.004,63744.0,63743.0,0.06265134]
[1727073836280,0.007,63744.0,63743.0,0.06265134]
[1727073836486,0.003,63744.0,63743.0,0.06265134]
[1727073837385,0.007,63744.0,63743.0,0.06265134]
[1727073838175,0.007,63744.0,63741.0,0.078445]
[1727073838376,0.007,63744.0,63743.0,0.06266708]
[1727073838584,0.007,63744.0,63741.0,0.078445]
[1727073838894,0.007,63744.0,63743.0,0.06267385]
[1727073839386,0.004,63744.0,63741.0,0.078445]
[1727073839590,0.001,63744.0,63742.0,0.202167]
[1727073839891,0.003,63744.0,63743.0,0.202167]
[1727073840091,0.005,63744.0,63743.0,0.202167]
[1727073840786,0.006,63744.0,63743.0,0.202167]
[1727073841589,0.006,63744.0,63743.0,0.10817315]
[1727073842188,0.003,63744.0,63743.0,0.10817315]
[1727073842390,0.005,63744.0,63743.0,0.10817315]
[1727073842595,0.006,63744.0,63743.0,0.10817315]
[1727073842893,0.007,63744.0,63743.0,0.10817315]
[1727073843094,0.007,63744.0,63743.0,0.10822918]
[1727073845386,0.12619355,63746.0,63743.0,0.10822918]
[1727073845586,0.12619355,63746.0,63745.0,0.09408665]
[1727073845793,0.12619355,63746.0,63745.0,0.20231583]
[1727073846507,0.13319355,63746.0,63745.0,0.20231583]
[1727073846993,0.13519355,63746.0,63745.0,0.20231583]
[1727073847791,0.13119355,63746.0,63745.0,0.20201725]
[1727073848000,0.13719355,63746.0,63745.0,0.20301725]
[1727073848199,0.13719355,63746.0,63745.0,0.1089306]
[1727073848496,0.13719355,63746.0,63745.0,0.18734533]
[1727073848696,0.13719355,63746.0,63745.0,0.18734478]
[1727073849485,0.13719355,63746.0,63745.0,0.001]
[1727073852201,0.13719355,63746.0,63745.0,0.07941418]
[1727073852698,0.13719355,63746.0,63745.0,0.001]
[1727073853105,0.13719355,63746.0,63745.0,0.07941418]
[1727073853295,0.13719355,63746.0,63745.0,0.18750682]
[1727073854298,0.13719355,63746.0,63745.0,0.07941418]
[1727073854699,0.13719355,63746.0,63745.0,0.001]
[1727073862002,0.13719355,63746.0,63745.0,0.07941418]
[1727073863413,0.13719355,63746.0,63745.0,0.18751474]
[1727073864305,0.13719355,63746.0,63745.0,0.18748094]
[1727073864704,0.13719355,63746.0,63745.0,0.07941534]
[1727073864913,0.13719355,63746.0,63745.0,0.1875167]
[1727073866106,0.13719355,63746.0,63745.0,0.07941534]
[1727073866606,0.13719355,63746.0,63745.0,0.18754021]
[1727073867709,0.13719355,63746.0,63745.0,0.18754219]
[1727073868513,0.13719355,63746.0,63745.0,0.18754459]
[1727073868514,0.091,63746.0,63745.0,0.18754459]
[1727073868705,0.091,63746.0,63745.0,0.10912487]
[1727073869715,0.091,63746.0,63745.0,0.001]
[1727073870209,0.011,63746.0,63745.0,0.07944]
[1727073870512,0.011,63746.0,63745.0,0.15944]
[1727073870720,0.011,63746.0,63745.0,0.31410608]
[1727073874105,0.011,63746.0,63745.0,0.39247313]
[1727073874516,0.011,63746.0,63745.0,0.31247313]
[1727073875217,0.011,63746.0,63745.0,0.56540705]
[1727073875716,0.011,63746.0,63745.0,0.67307275]
[1727073876317,0.011,63746.0,63745.0,0.56540705]
[1727073876513,0.011,63746.0,63745.0,0.48704]
[1727073876719,0.01151082,63748.0,63747.0,0.078438]
[1727073876918,0.08,63751.0,63748.0,0.078436]
[1727073877118,0.09148355,63751.0,63749.0,0.10765036]
[1727073877320,0.09148355,63751.0,63750.0,0.10765036]
[1727073877519,0.09148355,63751.0,63750.0,0.46845036]
[1727073878215,0.09148355,63751.0,63750.0,0.54677688]
[1727073879018,0.09148355,63751.0,63750.0,0.54677664]
[1727073879418,0.09948355,63751.0,63750.0,0.54677664]
[1727073879620,0.11048355,63751.0,63750.0,0.18697664]
[1727073880017,0.11048355,63751.0,63750.0,0.18797664]
[1727073880517,0.11048355,63751.0,63750.0,0.08032628]
[1727073881220,0.11048355,63751.0,63750.0,0.1878948]
[1727073881426,0.11048355,63751.0,63750.0,0.08032628]
[1727073882330,0.11048355,63751.0,63750.0,0.002]
[1727073882711,0.11048355,63751.0,63750.0,0.08032628]
[1727073882917,0.11048355,63751.0,63750.0,0.18788136]
[1727073883429,0.11048355,63751.0,63750.0,0.18787892]
[1727073884827,0.11048355,63751.0,63750.0,0.002]
[1727073887123,0.11048355,63751.0,63750.0,0.080434]
[1727073887124,0.03048355,63751.0,63750.0,0.080434]
[1727073891930,0.03048355,63751.0,63750.0,0.18797246]
[1727073893434,0.0494,63756.0,63751.0,0.078433]
[1727073893620,0.0494,63756.0,63753.0,0.0783331]
[1727073893825,0.0494,63756.0,63752.0,0.0783331]
[1727073894038,0.127827,63756.0,63752.0,0.0783331]
[1727073894229,0.127827,63756.0,63751.0,0.078433]
[1727073894230,0.127827,63756.0,63753.0,0.0783331]
[1727073894633,0.128827,63756.0,63753.0,0.0783331]
[1727073895332,0.127827,63756.0,63753.0,0.0783331]
[1727073895534,0.14123145,63756.0,63753.0,0.0793331]
[1727073896229,0.078429,63755.0,63753.0,0.0803331]
[1727073896734,0.078429,63755.0,63753.0,0.0793331]
[1727073896935,0.078429,63755.0,63753.0,0.0803331]
[1727073897329,0.078429,63755.0,63754.0,0.0783331]
[1727073898442,0.078429,63755.0,63753.0,0.0793331]
[1727073898626,0.079429,63755.0,63753.0,0.0803331]
[1727073899043,0.080429,63755.0,63754.0,0.001]
[1727073899232,0.080429,63755.0,63754.0,0.18782447]
[1727073899639,0.080429,63755.0,63754.0,0.0803331]
[1727073899945,0.080429,63755.0,63754.0,0.18684385]
[1727073900235,0.080429,63755.0,63754.0,0.10854667]
[1727073901427,0.080429,63755.0,63754.0,0.10754667]
[1727073902040,0.079429,63755.0,63754.0,0.10754667]
[1727073902241,0.080429,63755.0,63754.0,0.10954667]
[1727073905643,0.160429,63755.0,63754.0,0.10954667]
[1727073906849,0.160429,63755.0,63754.0,0.04907781]
[1727073908139,0.160429,63755.0,63754.0,0.002]
[1727073909531,0.160429,63755.0,63754.0,0.04907873]
[1727073909751,0.160429,63755.0,63754.0,0.002]
[1727073910836,0.082,63755.0,63754.0,0.002]
[1727073911050,0.002,63755.0,63754.0,0.002]
[1727073911848,0.002,63755.0,63754.0,0.080429]
[1727073912035,0.002,63755.0,63754.0,0.160429]
[1727073912240,0.002,63755.0,63754.0,0.630989]
[1727073912437,0.002,63755.0,63754.0,0.70945202]
[1727073912645,0.002,63755.0,63754.0,0.73821058]
[1727073913041,0.002,63755.0,63754.0,0.73805654]
[1727073914837,0.078421,63761.0,63754.0,0.31654828]
[1727073915037,0.078421,63761.0,63760.0,0.3608]
[1727073915237,0.078421,63761.0,63760.0,0.46786754]
[1727073915437,0.1288,63766.0,63760.0,0.46786754]
[1727073915438,0.0488,63766.0,63760.0,0.46786754]
[1727073915642,0.0488,63766.0,63765.0,0.158416]
[1727073915847,0.0488,63766.0,63765.0,0.6259043]
[1727073916744,0.06130031,63766.0,63765.0,0.6259043]
[1727073917138,0.06130031,63766.0,63765.0,0.6269043]
[1727073917640,0.01250031,63766.0,63765.0,0.6269043]
[1727073917839,0.01250031,63766.0,63765.0,0.6279043]
[1727073918339,0.17091431,63766.0,63765.0,0.002]
[1727073918849,0.17091431,63766.0,63765.0,0.06454583]
[1727073919851,0.17091431,63766.0,63765.0,0.002]
[1727073920738,0.17091431,63766.0,63765.0,0.3628]
[1727073922447,0.01250031,63766.0,63765.0,0.3628]
[1727073922640,0.078409,63771.0,63765.0,0.3628]
[1727073922641,0.079191,63786.0,63765.0,0.3628]
[1727073922840,0.00235115,63818.0,63790.0,0.3608]
[1727073923046,0.08,63819.0,63817.0,0.7216]
[1727073923255,0.078338,63829.0,63817.0,0.7216]
[1727073923256,0.08,63825.0,63817.0,0.7216]
[1727073923459,0.08,63818.0,63817.0,0.7216]
[1727073923756,0.08,63818.0,63817.0,0.3608]
[1727073924453,0.13,63819.0,63817.0,0.3608]
[1727073924653,0.13,63819.0,63817.0,0.3618]
[1727073926051,0.39312,63829.0,63817.0,0.7226]
[1727073926249,0.13,63827.0,63825.0,0.3608]
[1727073926855,0.60004,63827.0,63825.0,0.3608]
[1727073927150,0.60004,63827.0,63817.0,0.001]
[1727073927151,0.47004,63826.0,63817.0,0.001]
[1727073927355,0.4908,63818.0,63801.0,0.3608]
[1727073927560,0.4908,63818.0,63795.0,0.3608]
[1727073927561,0.13,63802.0,63795.0,0.3608]
[1727073927850,0.13,63797.0,63795.0,0.3608]
[1727073928444,0.95,63796.0,63795.0,0.3608]
[1727073928843,0.95,63796.0,63795.0,0.3688]
[1727073929043,0.13,63797.0,63795.0,0.3778]
[1727073929251,0.14132854,63797.0,63795.0,0.017]
[1727073929643,0.14132854,63797.0,63795.0,0.01]
[1727073930243,0.47024,63796.0,63795.0,0.009]
[1727073930756,1.07024,63796.0,63795.0,0.009]
[1727073931061,1.07024,63796.0,63795.0,0.003]
[1727073931747,1.07024,63796.0,63795.0,0.001]
[1727073931953,1.07124,63796.0,63789.0,0.3608]
[1727073932258,0.13,63791.0,63789.0,0.3608]
[1727073933152,0.13,63791.0,63789.0,0.3688]
[1727073933453,0.13,63791.0,63789.0,0.008]
[1727073933660,0.131,63791.0,63789.0,0.3628]
[1727073934859,0.131,63791.0,63789.0,0.3678]
[1727073935358,0.131,63791.0,63789.0,0.3728]
[1727073936853,0.13,63791.0,63789.0,0.3708]
[1727073937255,0.13,63791.0,63789.0,0.3688]
[1727073938156,0.174083,63792.0,63789.0,0.3688]
[1727073938360,0.13486143,63792.0,63789.0,0.3688]
[1727073938573,0.13486143,63792.0,63789.0,0.3678]
[1727073939061,0.13486143,63792.0,63789.0,0.3688]
[1727073939253,0.01132854,63797.0,63791.0,0.13]
[1727073939454,0.07837,63802.0,63794.0,0.078379]
[1727073939654,0.07837,63802.0,63796.0,0.3608]
[1727073940357,0.07837,63802.0,63796.0,0.4075989]
[1727073940560,0.078375,63798.0,63796.0,0.4075989]
[1727073940863,0.078376,63797.0,63796.0,0.3608]
[1727073941165,0.078376,63797.0,63796.0,0.4075989]
[1727073941358,0.078376,63797.0,63796.0,0.3608]
[1727073942355,0.078376,63797.0,63796.0,0.4075989]
[1727073942555,0.081376,63797.0,63796.0,0.3608]
[1727073944162,0.081376,63797.0,63796.0,0.42319853]
[1727073944661,0.082376,63797.0,63796.0,0.42319853]
[1727073944862,0.004,63797.0,63796.0,0.3608]
[1727073945965,0.004,63797.0,63796.0,0.439178]
[1727073947371,0.004,63797.0,63796.0,0.50157653]
[1727073947571,0.004,63797.0,63796.0,0.439178]
[1727073948371,0.003,63797.0,63796.0,0.50657653]
[1727073949160,0.004,63797.0,63796.0,0.451178]
[1727073950961,0.004,63797.0,63796.0,0.3728]
[1727073951977,0.004,63797.0,63796.0,0.49159534]
[1727073955965,0.082376,63797.0,63796.0,0.49159534]
[1727073956477,0.004,63797.0,63796.0,0.49159534]
[1727073957372,0.004,63797.0,63796.0,0.58519314]
[1727073957982,0.004,63797.0,63796.0,0.49159534]
[1727073958568,0.082376,63797.0,63796.0,0.58528946]
[1727073958877,0.082376,63797.0,63796.0,0.49159534]
[1727073960077,0.082376,63797.0,63796.0,0.3728]
[1727073960281,0.082376,63797.0,63796.0,0.49211581]
[1727073962370,0.082376,63797.0,63796.0,0.57023236]
[1727073962778,0.082376,63797.0,63796.0,0.45091655]
[1727073962975,0.082376,63797.0,63796.0,0.3728]
[1727073967174,0.082376,63797.0,63796.0,0.49225993]
[1727073967375,0.082376,63797.0,63796.0,0.63465369]
[1727073967979,0.082376,63797.0,63796.0,0.49225993]
[1727073968379,0.082376,63797.0,63796.0,0.58606934]
[1727073968679,0.137376,63797.0,63796.0,0.49225993]
[1727073969578,0.078379,63795.0,63793.0,0.09380941]
[1727073969883,0.078385,63790.0,63789.0,0.3608]
[1727073971584,0.078385,63790.0,63789.0,0.3728]
[1727073972981,0.079385,63790.0,63789.0,0.3808]
[1727073973186,0.09138413,63790.0,63789.0,0.3808]
[1727073974279,0.01299913,63790.0,63789.0,0.3808]
[1727073974494,0.01299913,63790.0,63789.0,0.52029087]
[1727073974981,0.1399,63794.0,63789.0,0.52029087]
[1727073975182,0.1399,63794.0,63789.0,0.3808]
[1727073975790,0.23008445,63794.0,63789.0,0.459186]
[1727073976284,0.23008445,63794.0,63789.0,0.447186]
[1727073976492,0.23008445,63794.0,63789.0,0.439186]
[1727073977492,0.23008445,63794.0,63789.0,0.3808]
[1727073977493,0.078382,63793.0,63789.0,0.3808]
[1727073979390,0.078382,63793.0,63789.0,0.3728]
[1727073979589,0.078382,63793.0,63789.0,0.3608]
[1727073979895,0.078382,63793.0,63789.0,0.3758]
[1727073980394,0.133382,63793.0,63789.0,0.3758]
[1727073981390,0.133382,63793.0,63789.0,0.3668]
[1727073981607,0.133382,63793.0,63789.0,0.3748]
[1727073981608,0.134382,63793.0,63789.0,0.3748]
[1727073982104,0.055,63793.0,63792.0,0.078382]
[1727073982303,0.078368,63804.0,63797.0,0.078375]
[1727073982492,0.13,63807.0,63802.0,0.3608]
[1727073982688,0.13,63803.0,63802.0,0.3608]
[1727073983394,0.1396,63808.0,63802.0,0.3608]
[1727073983605,0.13,63803.0,63802.0,0.3608]
[1727073984194,0.208369,63803.0,63802.0,0.3608]
[1727073984603,0.208369,63803.0,63802.0,0.47682343]
[1727073984805,0.214369,63803.0,63802.0,0.47782343]
[1727073985304,0.214369,63803.0,63802.0,0.47882343]
[1727073985305,0.084369,63803.0,63802.0,0.47882343]
[1727073985494,0.214369,63803.0,63802.0,0.47882343]
[1727073985913,0.214369,63803.0,63802.0,0.47782343]
[1727073986597,0.210369,63803.0,63802.0,0.3608]
[1727073987894,0.210369,63803.0,63802.0,0.47688575]
[1727073990291,0.210369,63803.0,63802.0,0.3608]
[1727073999204,0.078371,63801.0,63800.0,0.04688192]
[1727073999415,0.078373,63800.0,63798.0,0.04688192]
[1727073999610,0.208374,63799.0,63798.0,0.04688192]
[1727073999805,0.078376,63797.0,63796.0,0.40768582]
[1727074000103,0.078376,63797.0,63796.0,0.40768191]
[1727074000302,0.078376,63797.0,63796.0,0.3608]
[1727074001210,0.078376,63797.0,63796.0,0.3648]
[1727074002905,0.09067994,63797.0,63796.0,0.41168607]
[1727074003310,0.09267994,63797.0,63796.0,0.40768607]
[1727074004211,0.09267994,63797.0,63796.0,0.3608]
[1727074004611,0.09067994,63797.0,63796.0,0.3638]
[1727074004813,0.09067994,63797.0,63796.0,0.3648]
[1727074005309,0.09067994,63797.0,63796.0,0.61862773]
[1727074005310,0.01230394,63797.0,63796.0,0.61862773]
[1727074005512,0.078376,63797.0,63796.0,0.48005383]
[1727074005717,0.078376,63797.0,63796.0,0.47905383]
[1727074006815,0.078376,63797.0,63796.0,0.47805383]
[1727074007122,0.079376,63797.0,63796.0,0.47805383]
[1727074007424,0.079376,63797.0,63796.0,0.47779702]
[1727074007725,0.078376,63797.0,63796.0,0.47779702]
[1727074007914,0.080376,63797.0,63796.0,0.47779702]
[1727074008419,0.080376,63797.0,63796.0,0.47679702]
[1727074008821,0.080376,63797.0,63796.0,0.11599702]
[1727074010411,0.078377,63796.0,63795.0,0.3608]
[1727074010619,0.175077,63796.0,63795.0,0.4768208]
[1727074011519,0.175077,63796.0,63795.0,0.57067318]
[1727074011715,0.176077,63796.0,63795.0,0.57067318]
[1727074012023,0.176077,63796.0,63795.0,0.4778208]
[1727074013713,0.176077,63796.0,63795.0,0.1170208]
[1727074013910,0.176077,63796.0,63795.0,0.4778208]
[1727074014514,0.176077,63796.0,63795.0,0.55605498]
[1727074014717,0.176077,63796.0,63795.0,0.3618]